bitfinex/quotes_BTCUSD_20250829
["timestamp","ask_amount","ask_price","bid_price","bid_amount"]
[1756503007523,0.0002,108190.0,108180.0,0.52883411]
[1756503007724,0.0002,108190.0,108180.0,0.69753039]
[1756503007979,0.0002,108190.0,108180.0,1.20360403]
[1756503008205,0.0002,108190.0,108180.0,1.22454285]
[1756503008416,0.0002,108190.0,108180.0,1.43678513]
[1756503008825,0.0002,108190.0,108180.0,1.43674513]
[1756503009034,0.0002,108190.0,108180.0,1.51279917]
[1756503009944,0.0002,108190.0,108180.0,1.51379917]
[1756503010176,0.0002,108190.0,108180.0,1.49286035]
[1756503012016,0.0002,108190.0,108180.0,1.00772553]
[1756503012454,0.0002,108190.0,108180.0,1.51379917]
[1756503012900,0.0002,108190.0,108180.0,1.51375917]
[1756503013353,0.00043,108190.0,108180.0,0.53754039]
[1756503013589,0.0002,108190.0,108180.0,0.54845039]
[1756503013799,0.0002,108190.0,108180.0,1.05452403]
[1756503014430,0.0002,108190.0,108180.0,1.01227701]
[1756503015277,0.0002,108190.0,108180.0,0.50620337]
[1756503015493,0.0002,108190.0,108180.0,1.01227701]
[1756503015700,0.0002,108190.0,108180.0,1.10057333]
[1756503016381,0.0002,108190.0,108180.0,1.01227701]
[1756503019657,0.0002,108190.0,108180.0,0.50620337]
[1756503019877,0.0002,108190.0,108180.0,1.01227701]
[1756503020364,0.0002,108190.0,108180.0,1.03321583]
[1756503020583,0.0002,108190.0,108180.0,1.53928947]
[1756503020799,0.0002,108190.0,108180.0,1.12151215]
[1756503021237,0.0002,108190.0,108180.0,0.61543851]
[1756503021465,0.0002,108190.0,108180.0,1.12151215]
[1756503021691,0.0002,108190.0,108180.0,2.20456357]
[1756503021947,0.0004,108200.0,108190.0,0.33485996]
[1756503022199,0.00054297,108200.0,108190.0,1.14034965]
[1756503022406,0.00054297,108200.0,108190.0,1.65650847]
[1756503022553,0.00054297,108200.0,108190.0,1.68428047]
[1756503022725,0.00054297,108200.0,108190.0,1.02232683]
[1756503022934,0.00054297,108200.0,108190.0,1.53428047]
[1756503023143,0.00054297,108200.0,108190.0,1.01178801]
[1756503023339,0.00054297,108200.0,108190.0,1.51102847]
[1756503024159,0.00054297,108200.0,108190.0,1.50702847]
[1756503024382,0.00077297,108200.0,108190.0,1.20262847]
[1756503024601,0.00077297,108200.0,108190.0,0.43151628]
[1756503024836,0.00077297,108200.0,108190.0,0.43269628]
[1756503025117,0.18561585,108200.0,108190.0,0.27415628]
[1756503025333,0.18576585,108200.0,108190.0,0.43055628]
[1756503025535,0.18561585,108200.0,108190.0,0.42955628]
[1756503025748,0.69183949,108200.0,108190.0,0.15656]
[1756503025974,0.69183949,108200.0,108190.0,0.15856]
[1756503026184,0.69183949,108200.0,108190.0,0.15656]
[1756503026374,0.18485996,108190.0,108180.0,0.25599705]
[1756503026585,0.18485996,108190.0,108180.0,0.50081337]
[1756503026793,0.00023,108190.0,108180.0,0.50081337]
[1756503027012,0.6913136,108190.0,108180.0,0.07112]
[1756503027237,0.18508996,108190.0,108180.0,0.22764]
[1756503027574,0.00054297,108200.0,108190.0,0.18485996]
[1756503027779,0.00077297,108200.0,108190.0,0.27837628]
[1756503028763,0.00154297,108200.0,108190.0,0.78444992]
[1756503029606,0.00054297,108200.0,108190.0,0.78444992]
[1756503030023,0.00054297,108200.0,108190.0,0.78544992]
[1756503030752,0.00054297,108200.0,108190.0,0.8647052]
[1756503031108,0.00054297,108200.0,108190.0,1.0147052]
[1756503031308,0.00054297,108200.0,108190.0,1.03395374]
[1756503031918,0.00054297,108200.0,108190.0,1.03295374]
[1756503032356,0.00054297,108200.0,108190.0,1.03395374]
[1756503032566,0.00054297,108200.0,108190.0,1.03295374]
[1756503032782,0.00054297,108200.0,108190.0,1.03395374]
[1756503032998,0.00054297,108200.0,108190.0,1.05689256]
[1756503033323,0.00054297,108200.0,108190.0,1.74689256]
[1756503033495,0.00054297,108200.0,108190.0,1.77466656]
[1756503034486,0.00054297,108200.0,108190.0,1.97297581]
[1756503034715,1e-08,108200.0,108190.0,1.97297581]
[1756503034927,1e-08,108200.0,108190.0,2.42297581]
[1756503035512,1e-08,108200.0,108190.0,1.46999481]
[1756503036042,0.00023001,108200.0,108190.0,1.01591028]
[1756503036814,1e-08,108200.0,108190.0,1.56217128]
[1756503041178,1e-08,108200.0,108190.0,1.0368491]
[1756503041390,0.00023001,108200.0,108190.0,1.0368491]
[1756503042215,0.00023001,108200.0,108190.0,0.6338491]
[1756503042216,1e-08,108200.0,108190.0,0.6338491]
[1756503042615,1e-08,108200.0,108190.0,0.6348491]
[1756503042824,1e-08,108200.0,108190.0,0.6338491]
[1756503043025,1e-08,108200.0,108190.0,0.6348491]
[1756503043794,0.00023001,108200.0,108190.0,0.6348491]
[1756503044833,1e-08,108200.0,108190.0,0.6348491]
[1756503045231,1e-08,108200.0,108190.0,1.16017128]
[1756503047264,1e-08,108200.0,108190.0,1.2484676]
[1756503047475,1e-08,108200.0,108190.0,1.6484676]
[1756503048629,1e-08,108200.0,108190.0,1.12314542]
[1756503048847,0.00023001,108200.0,108190.0,0.83059628]
[1756503049057,0.18796527,108200.0,108190.0,0.43059628]
[1756503049424,0.00312239,108200.0,108190.0,0.43059628]
[1756503049631,0.18507289,108200.0,108190.0,0.43059628]
[1756503050097,0.00023001,108200.0,108190.0,0.43059628]
[1756503051421,0.00023001,108200.0,108190.0,0.43063628]
[1756503051626,0.18507289,108200.0,108190.0,0.43063628]
[1756503052023,0.00023001,108200.0,108190.0,0.27415628]
[1756503052226,0.00023001,108200.0,108190.0,0.43055628]
[1756503053320,0.00023001,108200.0,108190.0,0.43252628]
[1756503053491,0.00023001,108200.0,108190.0,0.43571628]
[1756503053670,0.00023001,108200.0,108190.0,0.43374628]
[1756503053891,0.00023001,108200.0,108190.0,0.43571628]
[1756503054849,1e-08,108200.0,108190.0,0.43571628]
[1756503057433,1e-08,108200.0,108190.0,0.43055628]
[1756503057644,0.00023001,108200.0,108190.0,0.43571628]
[1756503057845,0.00023001,108200.0,108190.0,0.27931628]
[1756503058056,0.00023001,108200.0,108190.0,0.43567628]
[1756503058800,0.00023001,108200.0,108190.0,0.43579628]
[1756503058998,0.18687994,108210.0,108190.0,0.43579628]
[1756503058999,0.00205258,108210.0,108200.0,0.2057817]
[1756503059198,0.0175,108240.0,108230.0,0.18479164]
[1756503059400,0.01797648,108240.0,108230.0,1.01024057]
[1756503061087,0.01797648,108240.0,108230.0,1.01124057]
[1756503061291,0.01797648,108240.0,108230.0,1.03372119]
[1756503061983,0.01797648,108240.0,108230.0,1.11585759]
[1756503062186,0.18472988,108270.0,108250.0,0.18474577]
[1756503062393,0.18472988,108270.0,108250.0,0.27623209]
[1756503062394,0.18474043,108260.0,108250.0,0.27623209]
[1756503062656,0.52487282,108270.0,108250.0,0.43464209]
[1756503063277,0.52486889,108270.0,108250.0,0.43464209]
[1756503063480,0.52586889,108270.0,108250.0,0.43464209]
[1756503063695,0.00023,108260.0,108250.0,0.43464209]
[1756503063943,0.52586889,108270.0,108250.0,0.48141375]
[1756503064623,0.52586889,108270.0,108250.0,0.43464209]
[1756503064840,0.52586889,108270.0,108250.0,0.27624382]
[1756503064841,0.18497043,108260.0,108250.0,0.27624382]
[1756503065055,0.18597043,108260.0,108240.0,0.19720329]
[1756503065261,0.18597043,108260.0,108250.0,0.15648]
[1756503066141,0.18597043,108260.0,108250.0,0.3412375]
[1756503066355,0.18497043,108260.0,108250.0,0.3432075]
[1756503066540,0.02273012,108260.0,108250.0,0.3444275]
[1756503067440,0.20847055,108260.0,108250.0,0.3412375]
[1756503067644,0.20847055,108260.0,108250.0,0.3444275]
[1756503067878,0.20847055,108260.0,108250.0,0.3412375]
[1756503068108,0.20847055,108260.0,108250.0,0.15648]
[1756503068578,0.20824055,108260.0,108250.0,0.3432075]
[1756503068798,0.02373012,108260.0,108250.0,0.3412375]
[1756503069048,0.02373012,108260.0,108250.0,0.3444275]
[1756503069257,0.20847055,108260.0,108250.0,0.3444275]
[1756503069432,0.20847055,108260.0,108250.0,0.3412375]
[1756503069667,0.20847055,108260.0,108250.0,0.15648]
[1756503069870,0.20847055,108260.0,108250.0,0.1566]
[1756503071140,0.20824055,108260.0,108250.0,0.15857]
[1756503071330,0.20847055,108260.0,108250.0,0.3413575]
[1756503071948,0.20847055,108260.0,108250.0,0.1566]
[1756503072871,0.02350012,108260.0,108250.0,0.43481382]
[1756503074932,0.001,108260.0,108250.0,1.1975101]
[1756503075134,0.001,108260.0,108250.0,0.67255687]
[1756503075373,0.001,108260.0,108250.0,1.41844892]
[1756503076067,0.00014294,108270.0,108260.0,0.18474043]
[1756503076275,0.00014294,108270.0,108260.0,0.87221998]
[1756503076493,0.00014294,108270.0,108260.0,0.9624863]
[1756503077502,0.00014294,108270.0,108260.0,0.9634863]
[1756503077704,0.00014294,108270.0,108260.0,0.43853307]
[1756503077956,0.00014294,108270.0,108260.0,0.35023675]
[1756503078369,0.00014294,108270.0,108260.0,0.37117557]
[1756503078539,0.00014294,108270.0,108260.0,0.8961288]
[1756503078753,0.34183714,108300.0,108290.0,0.18468926]
[1756503078954,0.34229714,108300.0,108290.0,0.35081926]
[1756503079495,0.34183714,108300.0,108290.0,0.35081926]
[1756503079876,0.34283714,108300.0,108290.0,0.35081926]
[1756503080310,0.37995603,108300.0,108290.0,0.35081926]
[1756503080510,0.37895603,108300.0,108290.0,0.35081926]
[1756503080687,0.37949603,108300.0,108290.0,0.35081926]
[1756503080887,0.37949603,108300.0,108290.0,0.42185926]
[1756503081455,0.37995603,108300.0,108290.0,0.42185926]
[1756503082301,0.04238623,108300.0,108290.0,1.09576537]
[1756503082504,0.00283714,108300.0,108290.0,1.09576537]
[1756503083339,0.00283714,108300.0,108290.0,1.24576537]
[1756503083554,0.00183714,108300.0,108290.0,1.24576537]
[1756503083808,0.00183714,108300.0,108290.0,1.18510881]
[1756503083980,0.00283714,108300.0,108290.0,1.18510881]
[1756503084401,0.00183714,108300.0,108290.0,1.18510881]
[1756503084596,0.00183714,108300.0,108290.0,0.66003558]
[1756503084825,0.00283714,108300.0,108290.0,0.66003558]
[1756503085054,0.00283714,108300.0,108290.0,0.34927558]
[1756503085271,0.00283714,108300.0,108290.0,0.51003558]
[1756503085488,0.00283714,108300.0,108290.0,1.03498881]
[1756503086686,0.00283714,108300.0,108290.0,1.12328513]
[1756503086884,0.00283714,108300.0,108290.0,1.14422395]
[1756503089265,0.00283714,108300.0,108290.0,1.54422395]
[1756503089620,0.00283714,108300.0,108290.0,1.01927072]
[1756503089821,0.00283714,108300.0,108290.0,1.54422395]
[1756503090608,0.00283714,108300.0,108290.0,1.89422395]
[1756503091173,0.00283714,108300.0,108290.0,2.25991294]
[1756503092005,0.00183714,108300.0,108290.0,2.25991294]
[1756503092340,1e-08,108300.0,108290.0,2.25991294]
[1756503092737,1e-08,108300.0,108290.0,1.93495971]
[1756503093300,0.0002,108310.0,108300.0,0.6746722]
[1756503093504,0.00034283,108310.0,108300.0,0.87532366]
[1756503093709,0.00034283,108310.0,108300.0,0.87745366]
[1756503093930,0.00034283,108310.0,108300.0,1.56308689]
[1756503094104,0.00034283,108310.0,108300.0,1.96308689]
[1756503095363,0.18468944,108360.0,108350.0,0.18458698]
[1756503095537,0.52805423,108360.0,108350.0,0.34514698]
[1756503095755,0.18851423,108360.0,108350.0,0.34514698]
[1756503095896,0.18880423,108360.0,108350.0,0.34514698]
[1756503096233,0.18851423,108360.0,108350.0,0.34514698]
[1756503096588,0.04159668,108360.0,108350.0,0.34514698]
[1756503096788,0.04159668,108360.0,108350.0,0.4935184]
[1756503097922,0.04159668,108360.0,108350.0,0.4334433]
[1756503099070,0.22616663,108360.0,108350.0,0.24885632]
[1756503099856,0.22616663,108360.0,108350.0,0.4334433]
[1756503100058,0.04159645,108360.0,108350.0,0.4334433]
[1756503100262,0.03870789,108360.0,108350.0,0.4334433]
[1756503100461,0.04159637,108360.0,108350.0,0.4334433]
[1756503100667,0.22616632,108360.0,108350.0,0.4334433]
[1756503101043,0.04159637,108360.0,108350.0,0.4334433]
[1756503101248,0.53746788,108370.0,108350.0,0.4334433]
[1756503101448,0.18456995,108360.0,108350.0,0.24885632]
[1756503101685,0.18456995,108360.0,108350.0,0.4334433]
[1756503101887,0.18456995,108360.0,108350.0,0.08829632]
[1756503102139,0.18456995,108360.0,108350.0,0.24905632]
[1756503102343,1.09983889,108370.0,108350.0,0.4336433]
[1756503102739,0.57488566,108370.0,108350.0,0.4336433]
[1756503102960,0.18456995,108360.0,108350.0,0.4336433]
[1756503103169,1.09983889,108370.0,108350.0,0.4336433]
[1756503103580,0.18456995,108360.0,108350.0,0.4336433]
[1756503103997,0.18456995,108360.0,108350.0,0.08829632]
[1756503104203,0.18458698,108350.0,108340.0,0.071]
[1756503104417,0.18458698,108350.0,108340.0,0.41636402]
[1756503105629,0.70952318,108360.0,108340.0,0.41636402]
[1756503106063,0.18462564,108330.0,108320.0,0.07096]
[1756503106267,0.18462106,108330.0,108320.0,0.23164]
[1756503106475,0.70957429,108330.0,108320.0,0.16132]
[1756503106715,0.18462106,108330.0,108320.0,0.16132]
[1756503107148,0.18462106,108330.0,108320.0,0.3459581]
[1756503107567,0.18462106,108330.0,108320.0,0.3464341]
[1756503107778,0.18458854,108350.0,108330.0,0.18462106]
[1756503108028,0.18456995,108360.0,108340.0,0.42221402]
[1756503108234,0.76825921,108370.0,108350.0,0.18458698]
[1756503108442,0.76825921,108370.0,108360.0,0.16144]
[1756503108643,1.09903157,108370.0,108360.0,0.34600995]
[1756503108859,0.57407834,108370.0,108360.0,0.34600995]
[1756503109061,1.09903157,108370.0,108360.0,0.34600995]
[1756503109344,0.04942387,108370.0,108360.0,0.34600995]
[1756503109554,0.38942387,108370.0,108360.0,0.3455502]
[1756503109761,0.38956664,108370.0,108360.0,0.3455502]
[1756503109901,0.57411956,108370.0,108360.0,0.3455502]
[1756503110107,0.57611956,108370.0,108360.0,0.3455502]
[1756503110345,0.39156664,108370.0,108360.0,0.3455502]
[1756503110553,0.39056664,108370.0,108360.0,0.3455502]
[1756503110753,0.57511956,108370.0,108360.0,0.16098025]
[1756503111273,0.57511956,108370.0,108360.0,0.3455502]
[1756503111710,0.39056664,108370.0,108360.0,0.87581343]
[1756503111912,0.57511956,108370.0,108360.0,0.3477102]
[1756503112115,0.57511956,108370.0,108360.0,0.3508602]
[1756503112549,0.57511956,108370.0,108360.0,0.16098025]
[1756503112754,0.57411956,108370.0,108360.0,0.3508602]
[1756503112900,0.57511956,108370.0,108360.0,0.16098025]
[1756503113105,0.57511956,108370.0,108360.0,0.3455502]
[1756503113334,0.58000788,108370.0,108360.0,0.3455502]
[1756503113513,0.57800788,108370.0,108360.0,0.3455502]
[1756503113952,0.57900788,108370.0,108360.0,0.3455502]
[1756503115618,0.57900788,108370.0,108360.0,0.3487002]
[1756503117241,0.57900788,108370.0,108350.0,0.18773698]
[1756503117393,1.08197498,108370.0,108360.0,0.16296]
[1756503117588,0.57900788,108370.0,108360.0,0.34752995]
[1756503117793,0.05445496,108370.0,108360.0,0.35283995]
[1756503118005,0.05445496,108370.0,108360.0,0.94410337]
[1756503118222,0.05445496,108370.0,108360.0,1.03239969]
[1756503118834,0.0168445,108370.0,108360.0,1.03239969]
[1756503119211,0.0158445,108370.0,108360.0,1.03239969]
[1756503119437,0.0168445,108370.0,108360.0,1.03239969]
[1756503120068,0.0158445,108370.0,108360.0,1.03239969]
[1756503120442,0.0158445,108370.0,108360.0,1.03439969]
[1756503120708,0.0158445,108370.0,108360.0,1.53736679]
[1756503120919,0.01584398,108370.0,108360.0,1.03439969]
[1756503121140,0.01584398,108370.0,108360.0,1.03539969]
[1756503121345,0.01584398,108370.0,108360.0,0.53243259]
[1756503121554,0.01584398,108370.0,108360.0,1.05616722]
[1756503121770,0.01295618,108370.0,108360.0,1.05616722]
[1756503123704,0.01295618,108370.0,108360.0,1.20616722]
[1756503124115,0.01295618,108370.0,108360.0,1.60616722]
[1756503125543,0.01295618,108370.0,108360.0,1.62710604]
[1756503125696,0.01295618,108370.0,108360.0,2.49084067]
[1756503125912,0.00235329,108370.0,108360.0,2.49084067]
[1756503126130,0.05082329,108390.0,108380.0,0.18453589]
[1756503126334,0.05082329,108390.0,108380.0,1.05673043]
[1756503126573,0.05082329,108390.0,108380.0,1.22766925]
[1756503127071,0.05082329,108390.0,108380.0,1.44946925]
[1756503127195,0.00190169,108400.0,108390.0,0.73451886]
[1756503127403,0.00190169,108400.0,108390.0,2.02908512]
[1756503127602,0.00190169,108400.0,108390.0,2.03124512]
[1756503127969,0.00190169,108400.0,108390.0,1.86584512]
[1756503128160,0.00190169,108400.0,108390.0,1.86836931]
[1756503128329,0.00190169,108400.0,108390.0,2.39210394]
[1756503129356,0.00190169,108400.0,108390.0,0.90066417]
[1756503129565,0.00406169,108400.0,108390.0,0.87812518]
[1756503129751,0.00406169,108400.0,108390.0,0.87281518]
[1756503129957,0.00406169,108400.0,108390.0,1.03993518]
[1756503130155,0.00406169,108400.0,108390.0,1.04209518]
[1756503130356,0.00190169,108400.0,108390.0,0.7335415]
[1756503130909,0.00190169,108400.0,108390.0,0.7325415]
[1756503131321,0.00190169,108400.0,108390.0,0.77387525]
[1756503131721,0.00190169,108400.0,108390.0,0.77383525]
[1756503132156,0.00190169,108400.0,108390.0,0.77483525]
[1756503133218,0.00190169,108400.0,108390.0,0.77583525]
[1756503136095,0.00190169,108400.0,108390.0,1.54619769]
[1756503136541,0.00190169,108400.0,108390.0,1.94619769]
[1756503137376,0.00190169,108400.0,108390.0,1.9843502]
[1756503137575,0.00190169,108400.0,108390.0,2.4743502]
[1756503139069,0.00190169,108400.0,108390.0,2.3359912]
[1756503139280,0.00190169,108400.0,108390.0,2.5020312]
[1756503140416,0.00390169,108400.0,108390.0,1.48049774]
[1756503140621,0.00190169,108400.0,108390.0,1.11207774]
[1756503140823,0.00388169,108400.0,108390.0,0.66242993]
[1756503141027,0.00190169,108400.0,108390.0,1.18918456]
[1756503141202,0.00190169,108400.0,108390.0,1.18240238]
[1756503141374,0.00190169,108400.0,108390.0,1.2706987]
[1756503143036,0.00190169,108400.0,108390.0,1.6206987]
[1756503143196,0.00190169,108400.0,108390.0,1.99767648]
[1756503144216,0.00190169,108400.0,108390.0,2.02539848]
[1756503144870,0.00190169,108400.0,108390.0,2.05108747]
[1756503145115,0.0002,108410.0,108390.0,2.45108747]
[1756503145324,0.00034269,108410.0,108400.0,1.32839693]
[1756503145545,0.00034269,108410.0,108400.0,1.41438698]
[1756503145691,0.00034269,108410.0,108400.0,1.41654698]
[1756503145908,0.00034269,108410.0,108400.0,1.81654698]
[1756503146476,0.00034269,108410.0,108400.0,1.29281235]
[1756503146694,0.00034269,108410.0,108400.0,1.81654698]
[1756503147928,0.37701779,108450.0,108430.0,0.18445079]
[1756503148163,0.38312653,108450.0,108440.0,0.35095378]
[1756503148542,0.38510653,108450.0,108440.0,0.35095378]
[1756503148747,0.04510653,108450.0,108440.0,0.35095378]
[1756503149157,0.56884116,108450.0,108440.0,0.35095378]
[1756503149945,0.56884116,108450.0,108440.0,0.42757385]
[1756503151017,0.56884116,108450.0,108430.0,0.13032543]
[1756503151018,0.22952331,108450.0,108430.0,0.13032543]
[1756503151150,0.18445079,108430.0,108410.0,0.61460121]
[1756503151356,0.00505,108420.0,108410.0,0.26460121]
[1756503151563,0.00505,108420.0,108410.0,0.43152121]
[1756503151564,0.00211,108420.0,108410.0,0.43152121]
[1756503151762,0.00211,108420.0,108410.0,0.43368121]
[1756503151967,0.00211,108420.0,108410.0,0.68022815]
[1756503152255,0.19365546,108440.0,108420.0,0.18446781]
[1756503152457,0.00198,108430.0,108420.0,0.27276413]
[1756503152658,0.22465723,108450.0,108430.0,0.18445079]
[1756503152877,0.18948378,108440.0,108430.0,0.08829632]
[1756503153089,0.18641378,108440.0,108430.0,0.27274711]
[1756503153304,0.18948378,108440.0,108430.0,0.27274711]
[1756503153475,0.19237012,108440.0,108430.0,0.49050437]
[1756503154370,0.00486634,108440.0,108430.0,0.49050437]
[1756503156111,0.00486634,108440.0,108430.0,0.49266437]
[1756503156490,0.03716045,108450.0,108440.0,0.18443378]
[1756503156636,0.04004644,108450.0,108440.0,0.25535378]
[1756503156838,0.04202644,108450.0,108440.0,0.25535378]
[1756503157247,0.00014266,108450.0,108440.0,1.08961453]
[1756503157450,0.00014266,108450.0,108440.0,0.5658799]
[1756503158943,0.00212266,108450.0,108440.0,0.4958101]
[1756503159144,0.00212266,108450.0,108440.0,0.6624901]
[1756503159346,0.00014266,108450.0,108440.0,0.6655101]
[1756503162714,0.00014266,108450.0,108440.0,0.6654301]
[1756503163349,0.00014266,108450.0,108440.0,0.4988301]
[1756503163597,0.00014266,108450.0,108440.0,0.71745758]
[1756503164412,0.00212266,108450.0,108440.0,0.5100501]
[1756503164965,0.00212266,108450.0,108440.0,0.3436501]
[1756503165167,0.00212266,108450.0,108440.0,0.07092]
[1756503165168,0.71622984,108450.0,108440.0,0.07092]
[1756503165396,1.32826079,108450.0,108400.0,0.15302]
[1756503165597,0.52373463,108410.0,108400.0,0.11601732]
[1756503165812,0.00199,108410.0,108400.0,0.43927816]
[1756503167962,0.00199,108410.0,108400.0,0.44143816]
[1756503168387,0.00199,108410.0,108400.0,0.43927816]
[1756503169723,0.00199,108410.0,108400.0,0.43907816]
[1756503169897,0.03952537,108410.0,108400.0,0.43887816]
[1756503170062,0.00199,108410.0,108400.0,0.51674589]
[1756503170255,0.00199,108410.0,108400.0,0.35066589]
[1756503170461,0.00199,108410.0,108400.0,0.51674589]
[1756503171682,0.00199,108410.0,108400.0,0.43887816]
[1756503171909,0.18450184,108400.0,108390.0,0.25543886]
[1756503172135,0.71024647,108400.0,108390.0,0.51075787]
[1756503172360,0.71328647,108400.0,108390.0,0.15935901]
[1756503172596,0.71328647,108400.0,108390.0,0.07106269]
[1756503172830,0.71328647,108400.0,108390.0,0.23794269]
[1756503173286,0.71328647,108400.0,108390.0,0.42246155]
[1756503173514,0.18955184,108400.0,108390.0,0.42246155]
[1756503173709,0.71328647,108400.0,108390.0,0.42246155]
[1756503174280,0.71328647,108400.0,108390.0,0.23794269]
[1756503175371,0.71328647,108400.0,108390.0,0.23770269]
[1756503175574,0.18955184,108400.0,108390.0,0.23770269]
[1756503175774,0.71328647,108400.0,108390.0,0.23770269]
[1756503176332,0.71328647,108400.0,108390.0,0.07106269]
[1756503176541,0.71328647,108400.0,108390.0,0.23770269]
[1756503177305,0.22228588,108410.0,108390.0,0.47047809]
[1756503177503,0.03779981,108410.0,108400.0,0.27588816]
[1756503177705,0.72047642,108430.0,108410.0,0.18447221]
[1756503178024,1.06047642,108430.0,108420.0,0.16668]
[1756503178436,0.53875179,108430.0,108420.0,0.16668]
[1756503178640,0.19571179,108430.0,108420.0,0.16668]
[1756503178805,0.19875179,108430.0,108420.0,0.16668]
[1756503179005,0.72248642,108430.0,108420.0,0.16668]
[1756503179360,0.18447963,108420.0,108400.0,0.28202325]
[1756503179564,0.70821426,108420.0,108410.0,0.1666]
[1756503179772,0.74506831,108420.0,108410.0,0.35108482]
[1756503179978,0.74707831,108420.0,108410.0,0.35108482]
[1756503180339,0.75011831,108420.0,108410.0,0.1666]
[1756503181327,0.74907831,108420.0,108410.0,0.1666]
[1756503182085,0.74807831,108420.0,108410.0,0.1666]
[1756503182260,0.74907831,108420.0,108410.0,0.1666]
[1756503182505,0.74907831,108420.0,108410.0,0.35108482]
[1756503182683,0.22534368,108420.0,108410.0,0.35310482]
[1756503182889,0.22534368,108420.0,108410.0,0.35108482]
[1756503183139,0.74907831,108420.0,108410.0,0.35108482]
[1756503183882,0.22534368,108420.0,108410.0,0.35310482]
[1756503184081,0.74907831,108420.0,108410.0,0.35108482]
[1756503184279,0.56459868,108420.0,108410.0,0.35310482]
[1756503184488,0.03885405,108420.0,108410.0,0.35310482]
[1756503184684,0.03885405,108420.0,108410.0,0.35619482]
[1756503185447,0.03785405,108420.0,108410.0,0.35619482]
[1756503185648,0.03685405,108420.0,108410.0,0.35619482]
[1756503185846,0.03785405,108420.0,108410.0,0.35619482]
[1756503186046,0.002,108420.0,108410.0,0.35619482]
[1756503186317,0.04039638,108420.0,108410.0,0.35619482]
[1756503186548,0.002,108420.0,108410.0,0.42001663]
[1756503187466,0.50119057,108430.0,108420.0,0.18446781]
[1756503187680,0.22442346,108440.0,108430.0,0.18445079]
[1756503187681,0.18443378,108440.0,108430.0,0.18445079]
[1756503187872,0.71017841,108440.0,108430.0,0.35061079]
[1756503188096,0.71017841,108440.0,108430.0,0.16616]
[1756503188754,0.71321841,108440.0,108430.0,0.16616]
[1756503188962,0.74985859,108440.0,108430.0,0.16616]
[1756503189378,0.74985859,108440.0,108430.0,0.35572079]
[1756503189379,0.56137481,108440.0,108430.0,0.35572079]
[1756503190656,0.03764018,108440.0,108430.0,0.35572079]
[1756503190860,0.03764018,108440.0,108430.0,0.44401711]
[1756503190977,0.001,108440.0,108430.0,0.44401711]
[1756503192233,1.15763621,108460.0,108440.0,0.18442137]
[1756503192442,1.4877789,108460.0,108450.0,0.35005861]
[1756503192649,1.4897889,108460.0,108450.0,0.35005861]
[1756503193122,1.52761928,108460.0,108450.0,0.35005861]
[1756503194647,1.52761928,108460.0,108450.0,0.3491363]
[1756503195322,1.18761928,108460.0,108450.0,0.3491363]
[1756503195449,0.66388465,108460.0,108450.0,0.3491363]
[1756503195791,1.18761928,108460.0,108450.0,0.3491363]
[1756503196164,0.74811928,108460.0,108450.0,0.3491363]
[1756503197178,0.74811928,108460.0,108440.0,0.33648379]
[1756503197406,0.70815141,108450.0,108440.0,0.18443378]
[1756503197606,0.71016141,108450.0,108440.0,0.35007378]
[1756503198285,0.71016141,108450.0,108440.0,0.35209378]
[1756503199656,0.18642678,108450.0,108440.0,0.35209378]
[1756503199864,0.71016141,108450.0,108440.0,0.35209378]
[1756503200910,0.77194699,108450.0,108440.0,0.18443378]
[1756503201066,0.18443378,108440.0,108420.0,0.25849781]
[1756503201260,0.52373463,108430.0,108420.0,0.34679413]
[1756503201504,0.70816841,108440.0,108430.0,0.18445079]
[1756503201691,0.71016841,108440.0,108420.0,0.34679413]
[1756503201895,0.71016841,108440.0,108430.0,0.16592]
[1756503202320,0.71016841,108440.0,108430.0,0.35037079]
[1756503204196,0.71016841,108440.0,108430.0,0.18445079]
[1756503204340,0.71016841,108440.0,108430.0,0.35025079]
[1756503204692,0.18643378,108440.0,108430.0,0.35025079]
[1756503204982,0.71016841,108440.0,108420.0,0.34679413]
[1756503205198,0.71321841,108440.0,108430.0,0.16564]
[1756503205395,0.69186222,108440.0,108430.0,0.16564]
[1756503205542,0.18445079,108430.0,108420.0,0.34368413]
[1756503205758,0.68682923,108430.0,108420.0,0.50924413]
[1756503205955,0.68882923,108430.0,108420.0,0.51128413]
[1756503206159,0.68882923,108430.0,108420.0,0.34883413]
[1756503206583,0.68882923,108430.0,108420.0,0.51443413]
[1756503206782,0.68882923,108430.0,108420.0,0.23648]
[1756503207260,0.69187923,108430.0,108420.0,0.23648]
[1756503207403,0.18446781,108420.0,108410.0,0.25970901]
[1756503207607,0.18446781,108420.0,108410.0,0.51352533]
[1756503207834,0.18446781,108420.0,108410.0,0.51556533]
[1756503208259,0.18644781,108420.0,108410.0,0.42726901]
[1756503208819,0.18644781,108420.0,108410.0,0.42826901]
[1756503209050,0.18644781,108420.0,108410.0,0.001]
[1756503209051,0.7098768,108420.0,108410.0,0.001]
[1756503209256,0.7098768,108420.0,108410.0,0.16628]
[1756503209433,0.7098768,108420.0,108410.0,0.16828]
[1756503209662,0.7098768,108420.0,108410.0,0.16628]
[1756503209839,0.7078968,108420.0,108410.0,0.17143]
[1756503209996,0.7078968,108420.0,108410.0,0.00615]
[1756503210197,0.7078968,108420.0,108410.0,0.17135]
[1756503210624,0.7098768,108420.0,108410.0,0.35583482]
[1756503210842,0.7098768,108420.0,108410.0,0.35483482]
[1756503211398,0.7098768,108420.0,108410.0,0.35172482]
[1756503212100,0.7098768,108420.0,108410.0,0.165]
[1756503212918,0.18644781,108420.0,108410.0,0.165]
[1756503213090,0.7098768,108420.0,108410.0,0.165]
[1756503213885,0.7098768,108420.0,108410.0,0.16704]
[1756503214139,0.7098768,108420.0,108410.0,0.165]
[1756503215118,0.7098768,108420.0,108410.0,0.1648]
[1756503215875,0.18450184,108400.0,108390.0,0.18762886]
[1756503216121,0.70992083,108400.0,108390.0,0.16486269]
[1756503216655,0.71298083,108400.0,108390.0,0.00014269]
[1756503216854,0.71298083,108400.0,108390.0,0.16470269]
[1756503216855,0.70992083,108400.0,108390.0,0.16470269]
[1756503217201,0.027733,108420.0,108390.0,0.55710893]
[1756503217402,0.21221011,108420.0,108400.0,0.25542097]
[1756503217573,0.55221011,108420.0,108410.0,0.16967]
[1756503217780,0.52447711,108420.0,108410.0,0.16967]
[1756503217989,1.0479061,108420.0,108410.0,0.16967]
[1756503218321,0.7079061,108420.0,108410.0,0.16967]
[1756503218532,0.7079061,108420.0,108410.0,0.35415482]
[1756503218808,0.7098861,108420.0,108410.0,0.16967]
[1756503220915,0.7098861,108420.0,108410.0,0.00204]
[1756503221138,0.7098861,108420.0,108410.0,0.16628]
[1756503221557,0.71710231,108430.0,108410.0,0.35387482]
[1756503221742,0.71710231,108430.0,108410.0,0.39293492]
[1756503221868,1.04787978,108430.0,108420.0,0.18757781]
[1756503222067,0.52445079,108430.0,108420.0,0.18961781]
[1756503223340,0.34,108430.0,108420.0,0.18961781]